bitfinex-derivatives/quotes_SOLF0:USTF0_20241010
["timestamp","ask_amount","ask_price","bid_price","bid_amount"]
[1728565219626,3.6044,138.87,138.83,5.76502]
[1728565219627,17.31,138.89,138.83,0.12502]
[1728565219818,1.4362,138.88,138.83,0.12502]
[1728565220821,3.6031,138.92,138.89,3.6037]
[1728565221233,1.4362,138.94,138.87,17.31]
[1728565222047,17.31,138.93,138.86,5.66]
[1728565222632,17.31,138.93,138.88,3.6038]
[1728565223021,1.4362,138.94,138.86,5.66]
[1728565224144,0.12502,138.95,138.89,17.31]
[1728565224335,0.12502,138.95,138.89,22.97]
[1728565224628,0.12502,138.95,138.91,3.603]
[1728565224831,0.12502,138.95,138.89,5.66]
[1728565225335,0.12502,138.95,138.89,22.97]
[1728565225730,3.72732,138.95,138.89,22.97]
[1728565226033,3.72732,138.95,138.91,17.31]
[1728565226338,0.12502,138.95,138.91,17.31]
[1728565226734,0.12502,138.95,138.92,22.97]
[1728565228141,5.78502,139.01,138.94,17.31]
[1728565228431,5.78502,139.01,138.95,5.66]
[1728565228637,3.6013,138.99,138.96,3.6018]
[1728565229134,5.78502,139.01,138.94,5.66]
[1728565229441,0.12502,139.01,138.94,22.97]
[1728565230444,3.6011,138.99,138.94,22.97]
[1728565230629,0.12502,139.01,138.94,22.97]
[1728565231434,0.12502,139.01,138.96,17.31]
[1728565231630,0.12502,139.01,138.97,5.64]
[1728565232732,0.12502,139.01,138.97,9.2415]
[1728565232733,3.6009,139.0,138.97,9.2415]
[1728565232933,0.12502,139.01,138.97,5.64]
[1728565233334,17.31,139.0,138.91,17.31]
[1728565233530,17.31,138.98,138.89,95.21502]
[1728565233740,3.6028,138.93,138.9,9.2433]
[1728565234048,17.31,138.96,138.9,3.6033]
[1728565234236,3.6028,138.93,138.9,3.6033]
[1728565234642,17.31,138.94,138.89,3.72872]
[1728565234846,17.31,138.94,138.89,0.12502]
[1728565235848,17.31,138.94,138.89,3.72862]
[1728565236144,5.64,138.95,138.89,0.12502]
[1728565236349,1.3338,138.96,138.92,3.6028]
[1728565236650,3.6023,138.95,138.92,3.6028]
[1728565238143,18.6438,138.96,138.91,5.64]
[1728565238548,3.6027,138.94,138.91,9.2431]
[1728565238942,18.6438,138.96,138.91,5.64]
[1728565239141,3.6026,138.94,138.91,9.2432]
[1728565239342,18.6438,138.96,138.91,9.2432]
[1728565239542,1.3338,138.96,138.91,9.2432]
[1728565239743,3.6024,138.95,138.92,3.6029]
[1728565240444,3.6026,138.94,138.91,9.2431]
[1728565241152,4.9358,138.96,138.93,3.6024]
[1728565241351,3.602,138.96,138.93,3.6024]
[1728565241844,6.9907,138.97,138.93,3.6024]
[1728565243449,3.6022,138.95,138.93,3.6024]
[1728565243646,6.9907,138.97,138.91,5.64]
[1728565243949,17.31,138.96,138.89,5.80502]
[1728565244146,17.31,138.94,138.89,0.12502]
[1728565244340,22.99,138.94,138.89,0.12502]
[1728565244544,1.3333,138.93,138.89,0.12502]
[1728565245048,1.4131,138.92,138.89,0.12502]
[1728565245241,3.6034,138.9,138.89,0.12502]
[1728565245844,5.0162,138.92,138.89,3.72852]
[1728565246049,1.4131,138.92,138.89,0.12502]
[1728565246451,1.4131,138.92,138.9,3.6033]
[1728565246645,22.99,138.96,138.89,5.80502]
[1728565246863,3.6023,138.95,138.93,3.6025]
[1728565247052,1.4131,138.98,138.93,17.31]
[1728565247247,1.54322,139.01,138.94,17.31]
[1728565247550,1.54322,139.01,138.96,3.6017]
[1728565247942,3.6011,138.99,138.95,3.602]
[1728565248147,1.54322,139.01,138.94,17.31]
[1728565248347,1.54322,139.01,138.96,17.31]
[1728565248552,0.12502,139.01,138.96,17.31]
[1728565249153,3.6012,138.99,138.96,20.9117]
[1728565249453,3.6012,138.99,138.96,17.31]
[1728565249845,0.12502,139.01,138.96,17.31]
[1728565250050,3.6009,139.0,138.97,3.6016]
[1728565250245,0.12502,139.01,138.96,17.31]
[1728565250450,0.12502,139.01,138.95,5.68]
[1728565250451,0.12502,139.01,139.0,3.6008]
[1728565251557,0.12502,139.01,138.99,3.601]
[1728565252354,3.72582,139.01,138.98,3.6014]
[1728565252853,0.12502,139.01,138.96,17.31]
[1728565253057,0.12502,139.01,138.96,3.6018]
[1728565253058,3.6013,138.99,138.96,3.6018]
[1728565253259,3.6013,138.99,138.95,22.99]
[1728565253455,3.6013,138.99,138.96,3.6018]
[1728565253952,0.12502,139.01,138.95,22.99]
[1728565254161,0.12502,139.01,138.98,17.31]
[1728565254760,0.12502,139.01,139.0,3.6008]
[1728565255356,0.12502,139.01,138.99,3.601]
[1728565255551,3.72582,139.01,138.96,17.31]
[1728565256762,3.72582,139.01,138.99,3.601]
[1728565257461,0.12502,139.01,138.99,3.601]
[1728565258056,0.12502,139.01,138.96,17.31]
[1728565258656,3.72562,139.01,138.99,3.601]
[1728565260265,0.12502,139.01,138.99,3.601]
[1728565260455,0.12502,139.01,138.96,17.31]
[1728565260862,3.72572,139.01,138.96,17.31]
[1728565261859,3.72572,139.01,138.98,3.6012]
[1728565262154,0.12502,139.01,138.96,17.31]
[1728565262458,3.6012,138.99,138.97,3.6015]
[1728565262663,3.6012,138.99,138.95,5.68]
[1728565262967,3.6012,138.99,138.97,3.6016]
[1728565263961,3.601,139.0,138.97,3.6016]
[1728565264669,17.31,139.0,138.93,3.6025]
[1728565264863,2.7758,138.99,138.93,3.6025]
[1728565265054,2.7758,138.99,138.91,5.68]
[1728565265255,3.6025,138.94,138.92,3.6029]
[1728565265758,17.31,138.96,138.91,3.603]
[1728565265960,17.31,138.96,138.89,5.80502]
[1728565266158,17.31,138.94,138.89,0.12502]
[1728565266356,3.6034,138.9,138.89,0.12502]
[1728565266762,18.7185,138.91,138.84,5.68]
[1728565266961,3.6037,138.89,138.85,3.6046]
[1728565267362,3.6037,138.89,138.84,5.68]
[1728565267760,3.6037,138.89,138.85,3.6046]
[1728565267962,3.6037,138.89,138.84,22.99]
[1728565268666,3.6037,138.89,138.86,3.6043]
[1728565270164,17.31,138.89,138.83,0.12502]
[1728565270568,17.31,138.87,138.83,0.12502]
[1728565270876,1.4064,138.86,138.83,0.12502]
[1728565271261,22.99,138.9,138.83,0.12502]
[1728565271463,24.3964,138.9,138.83,0.12502]
[1728565271962,17.31,138.89,138.83,0.12502]
[1728565272165,3.605,138.84,138.83,0.12502]
[1728565272363,5.68,138.86,138.83,0.12502]
[1728565272771,3.605,138.84,138.83,0.12502]
[1728565273163,3.6058,138.81,138.79,0.12518]
[1728565273361,5.68,138.86,138.79,0.12518]
[1728565273362,17.31,138.82,138.79,0.12518]
[1728565273768,3.6066,138.78,138.77,0.12502]
[1728565274475,22.95,138.8,138.71,23.07502]
[1728565274672,22.95,138.8,138.71,17.43502]
[1728565274877,3.6073,138.76,138.72,3.608]
[1728565275278,17.31,138.78,138.72,3.608]
[1728565275480,3.6077,138.74,138.71,0.12502]
[1728565276178,1.3929,138.76,138.71,0.12502]
[1728565276371,1.3929,138.76,138.65,0.12502]
[1728565276372,33.35,138.73,138.65,0.12502]
[1728565276580,5.64,138.73,138.68,3.609]
[1728565276765,3.6082,138.72,138.68,3.609]
[1728565276970,5.64,138.73,138.65,0.12502]
[1728565277474,33.35,138.73,138.65,0.12502]
[1728565277673,27.71,138.71,138.65,0.12502]
[1728565277977,5.66,138.7,138.65,0.12502]
[1728565278677,1.3624,138.69,138.65,0.12502]
[1728565278973,1.3624,138.69,138.66,3.6095]
[1728565279175,1.3624,138.69,138.65,0.12502]
[1728565279580,1.3624,138.69,138.68,3.6092]
[1728565280273,3.6079,138.73,138.69,3.6087]
[1728565280480,5.66,138.73,138.66,27.71]
[1728565280779,2.7651,138.74,138.72,3.6079]
[1728565280976,2.7651,138.74,138.66,33.37]
[1728565281183,1.3624,138.74,138.66,33.37]
[1728565281576,1.3624,138.74,138.73,3.6079]
[1728565281877,0.12502,138.77,138.68,27.71]
[1728565282078,5.66,138.76,138.68,27.71]
[1728565282280,5.66,138.76,138.75,3.6073]
[1728565282684,5.78502,138.77,138.75,3.6073]
[1728565283476,5.78502,138.77,138.74,3.6075]
[1728565283675,27.71,138.76,138.69,5.66]
[1728565283887,27.71,138.76,138.66,33.37]
[1728565284178,3.608,138.73,138.65,6.67052]
[1728565284382,5.66,138.73,138.65,6.67052]
[1728565284580,5.66,138.73,138.7,3.6085]
[1728565285087,3.6082,138.72,138.67,3.6093]
[1728565285279,3.6082,138.72,138.65,5.78502]
[1728565286490,27.71,138.74,138.65,5.78502]
[1728565286780,9.268,138.73,138.7,3.6085]
[1728565287186,9.268,138.73,138.65,5.78502]
[1728565287383,9.268,138.73,138.69,3.6087]
[1728565287775,5.66,138.73,138.65,5.78502]
[1728565288287,9.268,138.73,138.65,5.78502]
[1728565288481,9.268,138.73,138.69,3.6088]
[1728565289285,3.6081,138.72,138.69,3.6088]
[1728565290399,5.66,138.73,138.65,5.78502]
[1728565290694,4.1388,138.71,138.65,0.12502]
[1728565290894,3.6091,138.69,138.65,3.73482]
[1728565291689,3.6093,138.68,138.65,3.73482]
[1728565291995,5.66,138.7,138.65,0.12502]
[1728565292391,3.6092,138.68,138.65,0.12502]
[1728565292889,3.6092,138.68,138.65,3.73482]
[1728565293482,5.66,138.7,138.65,0.12502]
[1728565294491,13.4073,138.71,138.68,3.609]
[1728565294985,9.7988,138.71,138.65,0.12502]
[1728565295286,1.4444,138.71,138.65,27.83502]
[1728565295690,1.4444,138.71,138.7,3.6086]
[1728565296095,1.4444,138.71,138.65,27.83502]
[1728565296286,1.4444,138.71,138.69,3.6088]
[1728565296487,1.4444,138.71,138.65,0.12502]
[1728565296883,5.053,138.71,138.68,3.609]
[1728565297991,5.053,138.71,138.65,0.12502]
[1728565297992,3.6094,138.67,138.65,0.12502]
[1728565298700,2.7126,138.69,138.65,0.12502]
[1728565299288,3.6092,138.68,138.65,3.73482]
[1728565300991,3.6096,138.67,138.65,0.12502]
[1728565301192,9.2696,138.67,138.65,0.12502]
[1728565301585,3.6097,138.66,138.65,0.12502]
[1728565301996,5.66,138.67,138.65,0.12502]
[1728565302196,9.2696,138.67,138.65,0.12502]
[1728565303896,3.6101,138.65,138.6,5.78518]
[1728565304394,3.6101,138.65,138.62,3.6106]
[1728565304992,1.56942,138.71,138.64,27.71]
[1728565305295,0.12502,138.71,138.66,27.71]
[1728565305493,0.12502,138.71,138.68,27.71]
[1728565305689,0.12502,138.71,138.7,3.6086]
[1728565305887,0.12502,138.71,138.7,9.2686]
[1728565307296,0.12502,138.71,138.7,3.6086]
[1728565308592,0.12502,138.71,138.67,5.66]
[1728565309296,0.12502,138.71,138.7,3.6086]
[1728565313294,0.12502,138.71,138.64,27.71]
[1728565313496,0.12502,138.71,138.64,5.66]
[1728565313903,3.6088,138.7,138.67,3.6092]
[1728565314304,3.6088,138.7,138.64,5.66]
[1728565314503,3.6089,138.69,138.64,5.66]
[1728565315503,1.3572,138.7,138.64,5.66]
[1728565315700,4.966,138.7,138.64,5.66]
[1728565316006,4.966,138.7,138.67,3.6092]
[1728565317010,1.3491,138.69,138.67,3.6092]
[1728565319002,1.3491,138.69,138.64,5.66]
[1728565319003,1.3491,138.69,138.68,3.6092]
[1728565320010,1.3491,138.69,138.64,5.66]
[1728565320011,29.0591,138.69,138.6,0.12518]
[1728565320210,27.71,138.66,138.6,0.12518]
[1728565320711,27.71,138.66,138.64,3.6101]
[1728565321210,27.71,138.66,138.6,0.12518]
[1728565321417,5.66,138.67,138.6,0.12518]
[1728565321908,9.2694,138.67,138.62,3.6107]
[1728565322108,9.2694,138.67,138.6,0.12518]
[1728565322610,3.6097,138.66,138.6,0.12518]
[1728565323707,17.33,138.65,138.6,0.12518]
[1728565323908,1.4395,138.64,138.61,3.6108]
[1728565324413,17.33,138.62,138.59,0.12502]
[1728565324618,7.0995,138.64,138.53,0.12502]
[1728565324619,34.66,138.6,138.53,0.12502]
[1728565324822,17.33,138.55,138.53,0.12502]
[1728565325316,1.3715,138.54,138.53,0.12502]
[1728565328408,27.74,138.58,138.53,0.12502]
[1728565328614,1.3589,138.58,138.53,0.12502]
[1728565329604,33.4,138.61,138.53,0.12502]
[1728565330018,3.6113,138.6,138.56,3.6121]
[1728565330217,33.4,138.61,138.53,0.12502]
[1728565330418,33.4,138.61,138.55,3.6124]
[1728565330608,3.6113,138.6,138.53,0.12502]
[1728565330809,5.66,138.61,138.53,27.86502]
[1728565331007,5.66,138.61,138.54,1.4547]
[1728565331312,1.3589,138.63,138.55,33.4]
[1728565331706,1.3589,138.63,138.6,3.611]
[1728565331912,1.3589,138.63,138.55,33.4]
[1728565332113,1.3589,138.63,138.55,5.66]
[1728565332409,27.74,138.61,138.53,1.53642]
[1728565332714,33.4,138.61,138.53,0.12502]
[1728565333021,3.6116,138.59,138.55,3.6125]
[1728565333312,33.4,138.61,138.53,0.12502]
[1728565333514,1.3199,138.6,138.53,0.12502]
[1728565333716,3.6119,138.58,138.54,3.6127]
[1728565333914,3.6119,138.58,138.53,0.12502]
[1728565333915,1.3199,138.6,138.53,0.12502]
[1728565334111,2.7298,138.6,138.53,0.12502]
[1728565334309,3.6118,138.58,138.54,3.6127]
[1728565334514,2.7298,138.6,138.54,3.6127]
[1728565334714,2.7298,138.6,138.53,0.12502]
[1728565335519,3.6116,138.59,138.56,3.6122]
[1728565335819,2.7298,138.6,138.53,0.12502]
[1728565336117,27.74,138.61,138.53,0.12502]
[1728565336417,35.066,138.59,138.53,0.12502]
[1728565336821,3.6128,138.54,138.53,0.12502]
[1728565337210,35.066,138.59,138.53,0.12502]
[1728565337421,3.6127,138.55,138.53,0.12502]
[1728565337811,3.6122,138.57,138.54,3.6128]
[1728565338114,7.326,138.59,138.53,0.12502]
[1728565338515,27.74,138.56,138.53,0.12502]
[1728565338915,3.6128,138.54,138.53,0.12502]
[1728565346717,4.9887,138.55,138.53,0.12502]
[1728565347215,1.376,138.55,138.53,0.12502]
[1728565347414,1.376,138.55,138.53,3.73792]
[1728565348022,3.6124,138.56,138.53,0.12502]
[1728565348226,3.6124,138.56,138.54,3.6128]
[1728565348525,476.44518,139.08,138.53,0.12502]
[1728565348526,33.68,138.61,138.53,0.12502]
[1728565348727,27.74,138.59,138.53,0.12502]
[1728565348933,3.612,138.58,138.53,0.12502]
[1728565349150,4.1456,138.64,138.53,27.86502]
[1728565349317,4.1456,138.64,138.53,29.19662]
[1728565349718,4.1456,138.64,138.53,1.45662]
[1728565349922,27.74,138.63,138.53,1.45662]
[1728565350124,27.74,138.63,138.56,3.6123]
[1728565350322,27.74,138.63,138.56,5.94]
[1728565350527,4.1456,138.64,138.56,5.94]
[1728565351018,27.86502,138.65,138.56,33.68]
[1728565351019,0.12502,138.65,138.56,33.68]
[1728565351332,0.12502,138.65,138.59,27.74]
[1728565351522,0.12502,138.65,138.6,5.94]
[1728565352724,0.12502,138.65,138.57,1.3547]
[1728565352925,0.12502,138.65,138.54,105.74]
[1728565352926,31.50951812,138.65,138.54,105.74]
[1728565353125,2.6837,138.64,138.55,5.94]
[1728565353834,3.611,138.61,138.57,3.6119]
[1728565354232,4.0134,138.64,138.53,1.45662]
[1728565354233,27.74,138.62,138.53,1.45662]
[1728565354439,5.94,138.63,138.54,5.94]
[1728565354828,3.6109,138.62,138.58,3.6116]
[1728565355335,3.6105,138.63,138.59,3.6113]
[1728565355937,3.6108,138.62,138.59,3.6113]
[1728565356139,4.0134,138.64,138.59,3.6113]
[1728565356938,3.6106,138.63,138.59,3.6113]
[1728565357536,4.0134,138.64,138.58,5.94]
[1728565358233,4.0134,138.64,138.59,3.6114]
[1728565358436,4.0134,138.64,138.58,5.94]
[1728565358642,4.0134,138.64,138.57,3.6119]
[1728565358643,3.6113,138.6,138.57,3.6119]
[1728565358848,27.74,138.62,138.56,5.94]
[1728565359530,27.74,138.62,138.53,29.19662]
[1728565359729,27.74,138.62,138.54,5.94]
[1728565359934,33.68,138.62,138.54,5.94]
[1728565360136,3.6114,138.6,138.57,3.6119]
[1728565361940,3.6106,138.63,138.6,3.6112]
[1728565362251,4.0134,138.64,138.55,27.74]
[1728565362445,3.611,138.61,138.55,27.74]
[1728565362641,27.74,138.63,138.53,1.45662]
[1728565362844,27.74,138.63,138.55,5.94]
[1728565363151,3.6116,138.59,138.56,3.6122]
[1728565363350,27.74,138.63,138.55,5.94]
[1728565363552,3.6114,138.6,138.57,3.6119]
[1728565363746,27.74,138.63,138.55,5.94]
[1728565363937,4.0134,138.64,138.55,5.94]
[1728565364143,4.0134,138.64,138.55,33.68]
[1728565364946,3.6106,138.63,138.57,3.6118]
[1728565365146,4.0134,138.64,138.55,33.68]
[1728565365646,1.3443,138.64,138.55,33.68]
[1728565365949,0.12502,138.65,138.57,27.74]
[1728565366154,0.12502,138.65,138.61,3.6109]
[1728565366749,3.6103,138.64,138.6,6.1]
[1728565366952,0.12502,138.65,138.6,6.1]
[1728565367853,0.12502,138.65,138.63,3.6103]
[1728565368251,0.12502,138.65,138.6,6.1]
[1728565368554,0.12502,138.65,138.64,3.6102]
[1728565369339,0.12502,138.65,138.62,3.6106]
[1728565369547,0.12502,138.65,138.6,7.4251]
[1728565369748,3.6104,138.64,138.61,3.6109]
[1728565370548,0.12502,138.65,138.6,7.4251]
[1728565371052,0.12502,138.65,138.64,3.6102]
[1728565371756,0.12502,138.65,138.64,9.7102]
[1728565371967,3.609,138.69,138.66,3.6094]
[1728565372256,3.609,138.69,138.64,6.1]
[1728565372445,33.84,138.72,138.64,6.1]
[1728565373358,3.6094,138.68,138.65,3.6099]
[1728565375461,3.6091,138.69,138.66,3.6094]
[1728565376058,33.84,138.72,138.66,3.6094]
[1728565376447,33.84,138.72,138.64,6.1]
[1728565376850,3.6094,138.68,138.64,6.1]
[1728565377052,3.6094,138.68,138.66,3.6097]
[1728565377358,3.609,138.69,138.66,3.6097]
[1728565378062,6.1,138.72,138.68,3.609]
[1728565378460,6.1,138.72,138.65,17.32]
[1728565378946,18.7618,138.73,138.65,17.32]
[1728565379360,3.73342,138.71,138.69,3.6087]
[1728565379557,3.73342,138.71,138.65,17.32]
[1728565379958,3.6087,138.7,138.68,3.609]
[1728565380462,3.6092,138.68,138.66,3.6096]
[1728565380763,17.32,138.7,138.63,6.1]
[1728565380954,0.12502,138.71,138.63,23.42]
[1728565381151,3.6092,138.68,138.65,3.6098]
[1728565381358,3.6092,138.68,138.63,23.42]
[1728565381359,0.12502,138.71,138.63,23.42]
[1728565381748,3.6088,138.7,138.65,17.32]
[1728565381955,0.12502,138.71,138.65,17.32]
[1728565382251,0.12502,138.71,138.7,3.6086]
[1728565382458,0.12502,138.77,138.7,23.42]
[1728565383261,0.12502,138.77,138.72,3.6081]
[1728565383853,3.6073,138.76,138.73,3.6077]
[1728565384050,0.12502,138.77,138.72,17.32]
[1728565384449,0.12502,138.77,138.76,3.6071]
[1728565384652,0.12502,138.77,138.74,6.1]
[1728565385558,3.73192,138.77,138.74,9.7075]
[1728565386154,0.12502,138.77,138.74,6.1]
[1728565386962,0.12502,138.77,138.75,3.6071]
[1728565387265,0.12502,138.77,138.74,6.1]
[1728565388161,1.56872,138.83,138.75,27.7]
[1728565388369,0.12502,138.83,138.78,27.7]
[1728565388561,0.12502,138.83,138.79,6.1]
[1728565388764,3.73032,138.83,138.8,3.6059]
[1728565389873,3.73042,138.83,138.8,3.606]
[1728565391254,0.12502,138.83,138.79,6.1]
[1728565391569,0.12502,138.83,138.76,6.1]
[1728565391769,0.12502,138.83,138.76,33.8]
[1728565392463,3.6064,138.79,138.76,9.707]
[1728565393067,3.6058,138.81,138.76,6.1]
[1728565393369,0.12502,138.83,138.76,6.1]
[1728565393668,3.6056,138.82,138.79,3.6061]
[1728565393870,0.12502,138.83,138.76,6.1]
[1728565394062,0.12502,138.83,138.78,27.7]
[1728565395167,0.12502,138.83,138.77,1.447]
[1728565395365,0.12502,138.83,138.76,6.1]
[1728565395766,3.606,138.8,138.77,3.6066]
[1728565396469,0.12502,138.83,138.76,33.8]
[1728565397068,0.12502,138.83,138.78,27.7]
[1728565398570,0.12502,138.89,138.82,27.7]
[1728565398761,0.12502,138.89,138.83,6.12]
[1728565399272,3.72892,138.89,138.86,3.6043]
[1728565399666,0.12502,138.89,138.83,6.12]
[1728565399861,0.12502,138.89,138.88,3.604]
[1728565400064,0.12502,138.89,138.84,27.7]
[1728565400270,3.72882,138.89,138.85,3.6045]
[1728565400573,0.12502,138.89,138.83,6.12]
[1728565401169,3.72892,138.89,138.83,6.12]
[1728565401367,0.12502,138.89,138.83,6.12]
[1728565401569,0.12502,138.89,138.84,27.7]
[1728565401763,0.12502,138.89,138.85,3.6046]
[1728565401960,0.12502,138.89,138.84,27.7]
[1728565404267,3.72882,138.89,138.86,3.6043]
[1728565404469,0.12502,138.89,138.86,3.6043]
[1728565404973,3.6041,138.88,138.85,3.6047]
[1728565405369,0.12502,138.89,138.84,17.29]
[1728565405966,0.12502,138.89,138.88,3.604]
[1728565406580,0.12502,138.89,138.88,20.894]
[1728565406881,0.12502,138.95,138.89,17.29]
[1728565407173,3.72732,138.95,138.89,17.29]
[1728565407473,0.12502,138.95,138.91,17.29]
[1728565407677,0.12502,138.95,138.91,23.39]
[1728565407880,0.12502,138.95,138.93,3.6025]
[1728565409184,0.12502,138.95,138.94,3.6024]
[1728565413486,0.12502,138.95,138.91,23.39]
[1728565414479,0.12502,138.95,138.94,3.6024]
[1728565415284,0.12502,139.01,138.93,17.29]
[1728565415483,3.72572,139.01,138.97,17.29]
[1728565415687,0.12502,139.01,138.97,17.29]
[1728565415979,0.12502,139.01,138.98,3.6012]
[1728565416890,0.12502,139.01,138.98,3.6013]
[1728565417974,0.12502,139.01,138.96,6.1]
[1728565418176,3.72582,139.01,138.97,17.29]
[1728565418586,0.12502,139.01,138.98,3.6012]
[1728565418884,0.12502,139.01,138.95,17.29]
[1728565419184,0.12502,139.01,138.95,23.39]
[1728565419480,0.12502,139.01,138.96,3.6017]
[1728565419790,0.12502,139.01,138.95,23.39]
[1728565420183,0.12502,139.01,138.97,17.29]
[1728565420589,0.12502,139.01,139.0,3.6008]
[1728565421886,0.12502,139.01,139.0,9.7008]
[1728565422586,3.5995,139.06,139.03,3.5998]
[1728565423179,3.5995,139.06,139.01,17.29]
[1728565423380,3.72412,139.07,139.04,3.5998]
[1728565423790,0.12502,139.07,139.03,3.6]
[1728565423989,3.5995,139.06,139.03,3.6]
[1728565424385,0.12502,139.07,139.03,3.6]
[1728565424587,3.5996,139.05,139.02,3.6002]
[1728565425189,3.5996,139.05,139.02,9.6002]
[1728565425392,3.5998,139.04,139.02,9.6002]
[1728565425591,0.12502,139.07,139.01,6.0]
[1728565426081,3.6003,139.03,139.01,6.0]
[1728565426286,17.41502,139.07,138.99,17.29]
[1728565426485,17.29,139.05,138.98,6.0]
[1728565426681,3.601,139.0,138.98,6.0]
[1728565426882,2.7123,139.04,138.98,6.0]
[1728565427087,3.6007,139.01,138.98,6.0]
[1728565427287,3.6007,139.01,138.99,3.6011]
[1728565427487,3.6007,139.01,138.98,6.0]
[1728565427689,3.6005,139.02,138.98,6.0]
[1728565427890,3.6005,139.02,138.99,3.6011]
[1728565428285,2.7123,139.04,138.98,6.0]
[1728565429095,2.7123,139.04,138.98,23.29]
[1728565429600,2.7123,139.04,138.99,3.601]
[1728565429897,2.7123,139.04,138.98,23.29]
[1728565430598,3.6005,139.02,138.98,23.29]
[1728565431095,3.6005,139.02,138.99,3.601]
[1728565431390,3.6009,139.0,138.97,6.0]
[1728565431691,2.7123,139.04,138.97,6.0]
[1728565432092,2.7123,139.04,138.98,3.6013]
[1728565432290,3.601,139.0,138.97,6.0]
[1728565432690,20.90522336,139.03,138.95,0.12502]
[1728565432990,3.6009,139.0,138.96,23.29]
[1728565433489,3.6009,139.0,138.97,3.6016]
[1728565433892,3.6011,138.99,138.96,9.6018]
[1728565434093,3.6011,138.99,138.96,6.0]
[1728565434284,1.3628,139.02,138.96,6.0]
[1728565434489,1.3628,139.02,138.96,23.29]
[1728565435190,3.6007,139.01,138.96,23.29]
[1728565435694,3.6009,139.0,138.97,3.6014]
[1728565435894,1.3628,139.02,138.96,23.29]
[1728565436193,4.9633,139.02,138.99,3.601]
[1728565436384,1.3628,139.02,138.99,3.601]
[1728565436985,1.3628,139.02,138.96,6.0]
[1728565437591,3.6013,138.99,138.96,9.6018]
[1728565437797,7.3628,139.02,138.96,6.0]
[1728565438098,3.6013,138.99,138.97,3.6016]
[1728565438597,1.3628,139.02,138.98,17.29]
[1728565438899,1.3685,139.04,139.01,3.6006]
[1728565439089,1.3685,139.04,138.99,17.29]
[1728565439090,1.3685,139.04,138.99,23.29]
[1728565439694,1.3685,139.04,139.01,3.6004]
[1728565439995,1.3685,139.04,138.99,23.29]
[1728565440206,1.3685,139.04,138.99,6.0]
[1728565441398,3.6005,139.02,138.99,9.601]
[1728565441693,1.3685,139.04,138.96,18.6873]
[1728565441892,1.3685,139.04,138.95,0.12502]
[1728565441893,17.29,139.03,138.95,0.12502]
[1728565442200,17.29,139.01,138.95,0.12502]
[1728565442402,2.8302,139.0,138.95,0.12502]
[1728565443098,3.6019,138.96,138.95,0.12502]
[1728565443898,27.68,138.99,138.91,6.0]
[1728565444092,6.0,138.98,138.91,6.0]